Workbook

Sheet Forside
P1: Indtast | Q1: 31.01.2019
P2: Gå til "Intro til tal"
P3: Tryk på "Dato"-knappen
A13: ="Tal på udlændingeområdet pr."&" "&Forside!Q1&"" -> Tal på udlændingeområdet pr. 31.01.2019
A24: Månedstallene er opdateret af Udlændingestyrelsen. Tallene er foreløbige og der kan forekomme statistiske efterkorrektioner ved de følgende opgørelser.

Sheet Indholdsfortegnelse
B2: Indholdsfortegnelse
B4: Generel introduktion til tal på udlændingeområdet | N4: 1
B5: Overblik over alle meddelte opholdstilladelser mv. | N5: 2
B7: Asyl mv.
B8: Introduktion til asylområdet mv. | N8: 3
B9: Hovedtal på asylområdet mv. | N9: 4
B10: Asylansøgninger | N10: 5-6
B11: Visitering | N11: 7-8
B12: Afgørelser i sager om forlængelse og inddragelse af opholdstilladelse for somaliere | N12: 9
B14: Familiesammenføring mv.
B15: Introduktion til familiesammenføringsområdet mv. | N15: 10
B16: Hovedtal vedr. familiesammenføring mv. | N16: 11
B17: Ansøgninger om familiesammenføring | N17: 12
B18: Antal afgørelser vedr. ægtefællesammenføring, faste samlevere | N18: 13
B19: Antal afgørelser og ansøgninger vedr. familiesammenføring efter EU-reglerne, hvor referencen er dansk statsborger | N19: 14
B21: Permanent ophold
B22: Introduktion til permanent ophold | N22: 15
B23: Hovedtal vedr. permanent ophold | N23: 16-17
B25: Visum
B26: Introduktion til visumområdet | N26: 18
B27: Hovedtal på visumområdet | N27: 19
B29: Erhverv
B30: Introduktion til erhvervsområdet | N30: 20
B31: Hovedtal på erhvervsområdet | N31: 21-23
B32: Opholdstilladelser på erhvervsområdet | N32: 24
B34: Studie mv.
B35: Introduktion til studieområdet mv. | N35: 25
B36: Hovedtal på studieområdet mv. | N36: 26
B37: Opholdstilladelser på studieområdet mv. | N37: 27
B39: EU/EØS
B40: Introduktion til EU/EØS | N40: 28
B41: Hovedtal vedr. EU/EØS | N41: 29

Sheet Intro til tal

Sheet Overblik
A4: Tabel 1: Overblik over alle meddelte opholdstilladelser mv.
A7: Periode | B7: I alt 2018 | C7: 2019 | O7: ="2019 i alt pr."&" "&Forside!Q1&"" -> 2019 i alt pr. 31.01.2019
A8: Kategori | C8: jan | D8: feb | E8: mar | F8: apr | G8: maj | H8: jun | I8: jul | J8: aug | K8: sep | L8: okt | M8: nov | N8: dec
A9: Asyl mv. (A) | B9: 1652 | C9: 102 | O9: =SUM(C9:N9) -> 102
A10: Flygtningestatus * | B10: 1621 | C10: 101 | O10: 101
A11: Andet grundlag, herunder humanitære opholdstilladelser | B11: 31 | C11: 1 | O11: 1
A12: Familiesammenføring mv. (B) | B12: 5233 | C12: =SUM(C13+C15) -> 334 | O12: 334
A13: Familiesammenføring | B13: 4602 | C13: 309 | O13: 309
A14: - heraf ægtefæller/faste samlevere | B14: 3225 | C14: 245 | O14: 245
A15: Øvrige opholdssager (bl.a. adoptioner) | B15: 631 | C15: 25 | O15: 25
A16: Erhverv (E) | B16: 14353 | C16: 1125 | O16: =SUM(C16:N16) -> 1125
A17: - heraf fast-track, beløbsordningen, positivlisten og forskere og undervisere | B17: 6209 | C17: 480 | O17: 480
A18: - heraf greencard og etableringskort | B18: 412 | C18: 44 | O18: 44
A19: Studie mv. (F) | B19: 15819 | C19: 894 | O19: =SUM(C19:N19) -> 894
A20: - heraf uddannelse inkl. PhD-uddannelse | B20: 8857 | C20: 353 | O20: 353
A21: - heraf au pair | B21: 1310 | C21: 72 | O21: 72
A22: - heraf praktikanter | B22: 2250 | C22: 192 | O22: 192
A23: EU/EØS (G) | B23: 39075 | C23: 2967 | O23: 2967
A24: - heraf lønarbejde | B24: 20220 | C24: 1540 | O24: 1540
A25: - heraf uddannelse | B25: 9150 | C25: 600 | O25: 600
A26: -heraf til personer med tilstrækkelige midler | B26: 4868 | C26: 443 | O26: =SUM(C26:N26) -> 443
A27: I alt (A+B+E+F+G) | B27: 76132 | C27: =SUM(C9+C12+C16+C19+C23) -> 5422 | O27: =O9+O12+O16+O19+O23 -> 5422

Sheet Asyl - intro
A5: Asyl mv. (A)

Sheet Asyl - hovedtal
A5: (A) Tabel 1: Aktuelle hovedtal på asylområdet mv.
A8: Periode | B8: I alt 2018 | C8: 2019 | O8: 2019
A9: Kategori | C9: jan | D9: feb | E9: mar | F9: apr | G9: maj | H9: jun | I9: jul | J9: aug | K9: sep | L9: okt | M9: nov | N9: dec | O9: ="i alt pr."&" "&Forside!Q1&"" -> i alt pr. 31.01.2019
A10: Asylområdet generelt
A11: Antal asylansøgninger (bruttoansøgertallet) | B11: 3523 | C11: 223 | O11: =SUM(C11:N11) -> 223
A12: Antal opholdstilladelser meddelt på asylområdet mv. (note 1) (alle sagstyper, alle myndigheder) | B12: 1652 | C12: 102 | O12: =SUM(C12:N12) -> 102
A13: - heraf konventionsstatus | B13: 1028 | C13: 59 | O13: =SUM(C13:N13) -> 59
A14: - heraf beskyttelsesstatus/ de facto status | B14: 187 | C14: 20 | O14: 20
A15: - heraf midlertidig beskyttelsesstatus | B15: 406 | C15: 22 | O15: 22
A16: Antal flygtninge fordelt til kommunerne | B16: 844 | C16: 56 | O16: 56
A17: Antal indkvarterede på asylcentre ** | B17: 0
A18: Tal for Udlændingestyrelsens del af asylsagsbehandlingen
A19: Antal asylansøgninger, der er overgået til realitetsbehandling (registreringstallet) | B19: 2571 | C19: 233 | O19: =SUM(C19:N19) -> 233
A20: Anerkendelsesprocenten i asylsager i Udlændingestyrelsen | B20: 0.56 | C20: 0.34
A21: Note 3: Lov nr. 153 af 18. februar 2015 om midlertidig beskyttelse mv., der trådte i kraft 20. februar 2015, finder udelukkende anvendelse på ansøgninger om opholdstilladelse, som er indgivet fra og med den 14. november 2014.
A22: Note: Antallet af fjernregistrerede asylansøgere omfatter personer, der allerede har et opholdsgrundlag i Danmark, og personer der umiddelbart op til asylansøgningen har haft et opholdsgrundlag, som er bortfaldet eller inddraget. Andelen af de såkaldte fjernregistrerede beregnes ikke som en andel af bruttoansøgertallet, men derimod som en andel af antallet af registrerede asylsøgninger i Udlændingestyrelsen (EstherH). Andelen af fjernregistrerede var henholdsvis 25% i 2017 og 28% i 2018, mens andelen for asylansøgninger indgivet i 2019 indtil videre er ca. 37%.
A24: (A) Tabel 2: Historiske hovedtal på asylområdet mv.
A27: Periode | O27: =" i alt pr."&" "&Forside!Q1&"" -> i alt pr. 31.01.2019
A28: Kategori | B28: 2014 | C28: 2015 | F28: 2016 | I28: 2017 | L28: 2018
A29: Asylområdet generelt
A30: Antal asylansøgninger (bruttoansøgertallet) | B30: 14792 | C30: 21316 | F30: 6266 | I30: 3500 | L30: 3523 | O30: =O11 -> 223
A31: Antal opholdstilladelser meddelt på asylområdet mv. (alle sagstyper, alle myndigheder) | B31: 6104 | C31: 10849 | F31: 7493 | I31: 2750 | L31: 1652 | O31: 102
A32: - heraf konventionsstatus | B32: 3913 | C32: 7810 | F32: 4478 | I32: 1525 | L32: 1028 | O32: 59
A33: - heraf beskyttelsesstatus/ de facto status | B33: 1774 | C33: 1325 | F33: 406 | I33: 392 | L33: 187 | O33: 20
A34: - heraf midlertidig beskyttelsesstatus | C34: 1068 | F34: 2475 | I34: 789 | L34: 406 | O34: 22
A35: Antal flygtninge fordelt til kommunerne | B35: 6048 | C35: 10592 | F35: 7172 | I35: 2097 | L35: 844 | O35: 56
A36: Antal indkvarterede på asylcentre ** | O36: 0
A37: Tal for Udlændingestyrelsens del af asylsagsbehandlingen
A38: Antal asylansøgninger, der er overgået til realitetsbehandling (registreringstallet) | B38: 10192 | C38: 10472 | F38: 12722 | I38: 2411 | L38: 2571 | O38: =O19 -> 233
A39: Anerkendelsesprocenten i asylsager i Udlændingestyrelsen | B39: 0.74 | C39: 0.85 | F39: 0.72 | I39: 0.36 | L39: 0.56 | O39: =C20 -> 0.34

Sheet Asyl - ansøgninger
A5: (A) Tabel 3: Aktuelle månedlige asylansøgertal *
A8: Måned | B8: jan | C8: feb | D8: mar | E8: apr | F8: maj | G8: jun | H8: jul | I8: aug | J8: sep | K8: okt | L8: nov | M8: dec | N8: I alt | O8: I alt
A9: Nationalitet | N9: ="pr."&" "&Forside!Q1&"" -> pr. 31.01.2019 | O9: 2018
A10: Syrien | B10: 40 | N10: =SUM(B10:M10) -> 40 | O10: 598
A11: Eritrea | B11: 38 | N11: =SUM(B11:M11) -> 38 | O11: 656
A12: Marokko | B12: 8 | N12: =SUM(B12:M12) -> 8 | O12: 181
A13: Afghanistan | B13: 3 | N13: =SUM(B13:M13) -> 3 | O13: 114
A14: Iran | B14: 11 | N14: =SUM(B14:M14) -> 11 | O14: 196
A15: Irak | B15: 6 | N15: =SUM(B15:M15) -> 6 | O15: 117
A16: Statsløse | B16: 15 | N16: 15 | O16: 151
A17: Somalia | B17: 17 | N17: 17 | O17: 101
A18: Algeriet | B18: 5 | N18: =SUM(B18:M18) -> 5 | O18: 73
A19: Libyen | B19: 4 | N19: =SUM(B19:M19) -> 4 | O19: 42
A20: Georgien | B20: 8 | N20: 8 | O20: 396
A21: Albanien | B21: 12 | N21: 12 | O21: 77
A22: Nigeria | B22: 1 | N22: 1 | O22: 28
A23: Hviderusland | B23: 1 | N23: =SUM(B23:M23) -> 1 | O23: 37
A24: Rusland | B24: 3 | N24: =SUM(B24:M24) -> 3 | O24: 94
A25: Ukraine | B25: 6 | N25: =SUM(B25:M25) -> 6 | O25: 49
A26: Kosovo | B26: 0 | N26: =SUM(B26:M26) -> 0 | O26: 13
A27: Serbien | B27: 1 | N27: 1 | O27: 12
A28: Tyrkiet | B28: 1 | N28: 1 | O28: 26
A29: Øvrige | B29: 43 | N29: 43 | O29: 562
A30: I alt | B30: =SUM(B10:B29) -> 223 | N30: =SUM(B30:M30) -> 223 | O30: =SUM(O10:O29) -> 3523
A32: (A) Tabel 4: Historiske månedlige asylansøgertal *
A35: Måned | B35: jan | C35: feb | D35: mar | E35: apr | F35: maj | G35: jun | H35: jul | I35: aug | J35: sep | K35: okt | L35: nov | M35: dec | N35: I alt
A36: År
A37: 2014 | B37: 567 | C37: 444 | D37: 507 | E37: 612 | F37: 723 | G37: 1009 | H37: 1733 | I37: 2302 | J37: 3147 | K37: 1857 | L37: 1116 | M37: 775 | N37: =SUM(B37:M37) -> 14792
A38: 2015 | B38: 647 | C38: 476 | D38: 465 | E38: 564 | F38: 914 | G38: 1077 | H38: 1063 | I38: 1813 | J38: 2757 | K38: 3694 | L38: 5104 | M38: 2742 | N38: 21316
A39: 2016 | B39: 1644 | C39: 921 | D39: 472 | E39: 401 | F39: 386 | G39: 468 | H39: 405 | I39: 315 | J39: 335 | K39: 350 | L39: 305 | M39: 264 | N39: 6266
A40: 2017 | B40: 251 | C40: 219 | D40: 272 | E40: 247 | F40: 317 | G40: 309 | H40: 346 | I40: 332 | J40: 331 | K40: 316 | L40: 315 | M40: 245 | N40: 3500
A41: 2018 | B41: 289 | C41: 271 | D41: 270 | E41: 241 | F41: 283 | G41: 251 | H41: 351 | I41: 369 | J41: 374 | K41: 342 | L41: 305 | M41: 177 | N41: =SUM(B41:M41) -> 3523
A42: 2019 | B42: =B30 -> 223 | O42: =SUM(B42:M42) -> 223
A44: * Tallene for 2013-2017 er opdateret på baggrund af endelige registreringer i Polsas fra Rigspolitiet. Der tages forbehold for, at der løbende kan forekomme efterkorrektioner til disse tal.

Sheet Asyl - UMI_ansøgninger
A5: (A) Tabel 5: Antal asylansøgninger fra uledsagede mindreårige fordelt på de største nationalitetsgrupper *
A8: Måned | B8: jan | C8: feb | D8: mar | E8: apr | F8: maj | G8: jun | H8: jul | I8: aug | J8: sep | K8: okt | L8: nov | M8: dec | N8: I alt | O8: I alt
A9: Nationalitet | N9: ="pr."&" "&Forside!Q1&"" -> pr. 31.01.2019 | O9: 2018
A10: Marokko | B10: 4 | N10: =SUM(B10:M10) -> 4 | O10: 75
A11: Afghanistan | B11: 1 | N11: =SUM(B11:M11) -> 1 | O11: 23
A12: Syrien | B12: 3 | N12: =SUM(B12:M12) -> 3 | O12: 17
A13: Algeriet | B13: 5 | N13: =SUM(B13:M13) -> 5 | O13: 27
A14: Libyen | B14: 0 | N14: 0 | O14: 12
A15: Somalia | B15: 2 | N15: =SUM(B15:M15) -> 2 | O15: 12
A16: Eritrea | B16: 1 | N16: =SUM(B16:M16) -> 1 | O16: 19
A17: Statsløse | B17: 0 | N17: =SUM(B17:M17) -> 0 | O17: 5
A18: Irak | B18: 0 | N18: =SUM(B18:M18) -> 0 | O18: 7
A19: Guinea | B19: 0 | N19: 0 | O19: 5
A20: Gambia | B20: 0 | N20: 0 | O20: 1
A21: Ethiopien | B21: 0 | N21: 0 | O21: 0
A22: Øvrige | B22: 2 | N22: =SUM(B22:M22) -> 2 | O22: 44
A23: I alt | B23: =SUM(B10:B22) -> 18 | N23: =SUM(B23:M23) -> 18 | O23: =SUM(O10:O22) -> 247
A25: (A) Tabel 6: Historiske antal asylansøgninger fra uledsagede mindreårige *
A28: Måned | B28: jan | C28: feb | D28: mar | E28: apr | F28: maj | G28: jun | H28: jul | I28: aug | J28: sep | K28: okt | L28: nov | M28: dec | N28: I alt
A29: År
A30: 2014 | B30: 30 | C30: 25 | D30: 35 | E30: 29 | F30: 33 | G30: 51 | H30: 81 | I30: 113 | J30: 177 | K30: 102 | L30: 73 | M30: 69 | O30: =SUM(B30:M30) -> 818
A31: 2015 | B31: 52 | C31: 46 | D31: 34 | E31: 43 | F31: 80 | G31: 91 | H31: 92 | I31: 154 | J31: 325 | K31: 321 | L31: 511 | M31: 395 | O31: =SUM(B31:M31) -> 2144
A32: 2016 | B32: 255 | C32: 132 | D32: 66 | E32: 83 | F32: 103 | G32: 130 | H32: 97 | I32: 80 | J32: 73 | K32: 57 | L32: 53 | M32: 55 | O32: =SUM(B32:M32) -> 1184
A33: 2017 | B33: 34 | C33: 49 | D33: 37 | E33: 29 | F33: 47 | G33: 61 | H33: 49 | I33: 38 | J33: 28 | K33: 32 | L33: 36 | M33: 22 | N33: =SUM(B33:M33) -> 462
A34: 2018 | B34: 27 | C34: 22 | D34: 41 | E34: 10 | F34: 13 | G34: 10 | H34: 11 | I34: 24 | J34: 20 | K34: 22 | L34: 30 | M34: 17 | N34: =SUM(B34:M34) -> 247
A35: 2019 | B35: =B23 -> 18 | O35: =SUM(B35:M35) -> 18
A37: * Tallene for 2013-2017 er opdateret på baggrund af endelige registreringer i Polsas fra Rigspolitiet. Der tages forbehold for, at der løbende kan forekomme efterkorrektioner til disse tal.

Sheet Asyl - visitering(1)
A1: (A) Tabel 7: Antal visiteringer af flygtninge fordelt på kommuner og regioner *
B4: 2018 | C4: Antal visiteringer i januar 2019 | D4: ="I alt 2019 pr."&" "&Forside!Q1&"" -> I alt 2019 pr. 31.01.2019
A5: Kommune/Region
A6: Brønderslev Kommune | B6: 5 | C6: 0 | D6: 0
A7: Frederikshavn Kommune | B7: 14 | C7: 0 | D7: 0
A8: Hjørring Kommune | B8: 14 | C8: 1 | D8: 1
A9: Jammerbugt Kommune | B9: 11 | C9: 0 | D9: 0
A10: Læsø Kommune | B10: 0 | C10: 0 | D10: 0
A11: Mariagerfjord Kommune | B11: 10 | C11: 0 | D11: 0
A12: Morsø Kommune | B12: 0 | C12: 0 | D12: 0
A13: Rebild Kommune | B13: 7 | C13: 0 | D13: 0
A14: Thisted Kommune | B14: 6 | C14: 0 | D14: 0
A15: Vesthimmerlands Kommune | B15: 9 | C15: 1 | D15: 1
A16: Aalborg Kommune | B16: 66 | C16: 1 | D16: 1
A17: Region Nordjylland i alt | B17: 142 | C17: =SUM(C6:C16) -> 3 | D17: =SUM(D6:D16) -> 3
A18: Favrskov Kommune | B18: 10 | C18: 0 | D18: 0
A19: Hedensted Kommune | B19: 11 | C19: 0 | D19: 0
A20: Herning Kommune | B20: 11 | C20: 0 | D20: 0
A21: Holstebro Kommune | B21: 12 | C21: 0 | D21: 0
A22: Horsens Kommune | B22: 5 | C22: 6 | D22: 6
A23: Ikast-Brande Kommune | B23: 4 | C23: 0 | D23: 0
A24: Lemvig Kommune | B24: 2 | C24: 0 | D24: 0
A25: Norddjurs Kommune | B25: 6 | C25: 0 | D25: 0
A26: Odder Kommune | B26: 0 | C26: 0 | D26: 0
A27: Randers Kommune | B27: 25 | C27: 11 | D27: 11
A28: Ringkøbing-Skjern Kommune | B28: 5 | C28: 0 | D28: 0
A29: Samsø Kommune | B29: 0 | C29: 0 | D29: 0
A30: Silkeborg Kommune | B30: 16 | C30: 1 | D30: 1
A31: Skanderborg Kommune | B31: 4 | C31: 1 | D31: 1
A32: Skive Kommune | B32: 13 | C32: 0 | D32: 0
A33: Struer Kommune | B33: 3 | C33: 0 | D33: 0
A34: Syddjurs Kommune | B34: 2 | C34: 0 | D34: 0
A35: Viborg Kommune | B35: 19 | C35: 0 | D35: 0
A36: Aarhus Kommune | B36: 46 | C36: 1 | D36: 1
A37: Region Midtjylland i alt | B37: 194 | C37: =SUM(C18:C36) -> 20 | D37: =SUM(D18:D36) -> 20
A38: Assens Kommune | B38: 1 | C38: 0 | D38: 0
A39: Billund Kommune | B39: 0 | C39: 0 | D39: 0
A40: Esbjerg Kommune | B40: 16 | C40: 1 | D40: 1
A41: Fanø Kommune | B41: 1 | C41: 0 | D41: 0
A42: Fredericia Kommune | B42: 1 | C42: 0 | D42: 0
A43: Faaborg-Midtfyn Kommune | B43: 7 | C43: 0 | D43: 0
A44: Haderslev Kommune | B44: 7 | C44: 0 | D44: 0
A45: Kerteminde Kommune | B45: 1 | C45: 0 | D45: 0
A46: Kolding Kommune | B46: 13 | C46: 1 | D46: 1
A47: Langeland Kommune | B47: 1 | C47: 0 | D47: 0
A48: Middelfart Kommune | B48: 5 | C48: 0 | D48: 0
A49: Nordfyns Kommune | B49: 0 | C49: 0 | D49: 0
A50: Nyborg Kommune | B50: 1 | C50: 1 | D50: 1
A51: Odense Kommune | B51: 5 | C51: 0 | D51: 0
A52: Svendborg Kommune | B52: 6 | C52: 0 | D52: 0
A53: Sønderborg Kommune | B53: 5 | C53: 0 | D53: 0
A54: Tønder Kommune | B54: 3 | C54: 0 | D54: 0
A55: Varde Kommune | B55: 5 | C55: 1 | D55: 1
A56: Vejen Kommune | B56: 5 | C56: 0 | D56: 0
A57: Vejle Kommune | B57: 25 | C57: 0 | D57: 0
A58: Ærø Kommune | B58: 1 | C58: 0 | D58: 0
A59: Aabenraa Kommune | B59: 9 | C59: 1 | D59: 1
A60: Region Syddanmark i alt | B60: 118 | C60: =SUM(C38:C59) -> 5 | D60: =SUM(D38:D59) -> 5
A61: * Tabellen viser antallet af beslutninger truffet i Udlændingestyrelsen om visitering af flygtninge til en kommune/region. Fra beslutningen om visitering er truffet, går der i gennemsnit 1½ måned før flygtningen ankommer til den pågældende kommune.

Sheet Asyl - visitering(2)
A5: (A) Tabel 7: Antal visiteringer af flygtninge fordelt på kommuner og regioner *
B8: 2018 | C8: Antal visiteringer i januar 2019 | D8: ="I alt 2019 pr."&" "&Forside!Q1&"" -> I alt 2019 pr. 31.01.2019
A9: Kommune/Region
A10: Albertslund Kommune | B10: 0 | C10: 0 | D10: 0
A11: Allerød Kommune | B11: 6 | C11: 0 | D11: 0
A12: Ballerup Kommune | B12: 6 | C12: 0 | D12: 0
A13: Bornholms Regionskommune | B13: 9 | C13: 0 | D13: 0
A14: Brøndby Kommune | B14: 0 | C14: 0 | D14: 0
A15: Dragør Kommune | B15: 4 | C15: 0 | D15: 0
A16: Egedal Kommune | B16: 1 | C16: 0 | D16: 0
A17: Fredensborg Kommune | B17: 3 | C17: 0 | D17: 0
A18: Frederiksberg Kommune | B18: 19 | C18: 0 | D18: 0
A19: Frederikssund Kommune | B19: 14 | C19: 0 | D19: 0
A20: Furesø Kommune | B20: 5 | C20: 0 | D20: 0
A21: Gentofte Kommune | B21: 21 | C21: 0 | D21: 0
A22: Gladsaxe Kommune | B22: 9 | C22: 0 | D22: 0
A23: Glostrup Kommune | B23: 2 | C23: 0 | D23: 0
A24: Gribskov Kommune | B24: 11 | C24: 0 | D24: 0
A25: Halsnæs Kommune | B25: 6 | C25: 0 | D25: 0
A26: Helsingør Kommune | B26: 1 | C26: 0 | D26: 0
A27: Herlev Kommune | B27: 2 | C27: 0 | D27: 0
A28: Hillerød Kommune | B28: 5 | C28: 0 | D28: 0
A29: Hvidovre Kommune | B29: 7 | C29: 1 | D29: 1
A30: Høje-Taastrup Kommune | B30: 0 | C30: 0 | D30: 0
A31: Hørsholm Kommune | B31: 6 | C31: 0 | D31: 0
A32: Ishøj Kommune | B32: 0 | C32: 0 | D32: 0
A33: Københavns Kommune | B33: 84 | C33: 24 | D33: 24
A34: Lyngby-Taarbæk Kommune | B34: 15 | C34: 0 | D34: 0
A35: Rudersdal Kommune | B35: 8 | C35: 1 | D35: 1
A36: Rødovre Kommune | B36: 3 | C36: 0 | D36: 0
A37: Tårnby Kommune | B37: 6 | C37: 0 | D37: 0
A38: Vallensbæk Kommune | B38: 0 | C38: 0 | D38: 0
A39: Region Hovedstaden i alt | B39: 253 | C39: =SUM(C10:C38) -> 26 | D39: =SUM(D10:D38) -> 26
A40: Faxe Kommune | B40: 4 | C40: 1 | D40: 1
A41: Greve Kommune | B41: 7 | C41: 0 | D41: 0
A42: Guldborgsund Kommune | B42: 13 | C42: 0 | D42: 0
A43: Holbæk Kommune | B43: 19 | C43: 0 | D43: 0
A44: Kalundborg Kommune | B44: 6 | C44: 0 | D44: 0
A45: Køge Kommune | B45: 7 | C45: 0 | D45: 0
A46: Lejre Kommune | B46: 1 | C46: 0 | D46: 0
A47: Lolland Kommune | B47: 6 | C47: 1 | D47: 1
A48: Næstved Kommune | B48: 17 | C48: 0 | D48: 0
A49: Odsherred Kommune | B49: 5 | C49: 0 | D49: 0
A50: Ringsted Kommune | B50: 6 | C50: 0 | D50: 0
A51: Roskilde Kommune | B51: 14 | C51: 0 | D51: 0
A52: Slagelse Kommune | B52: 10 | C52: 0 | D52: 0
A53: Solrød Kommune | B53: 4 | C53: 0 | D53: 0
A54: Sorø Kommune | B54: 5 | C54: 0 | D54: 0
A55: Stevns Kommune | B55: 3 | C55: 0 | D55: 0
A56: Vordingborg Kommune | B56: 10 | C56: 0 | D56: 0
A57: Region Sjælland i alt | B57: 137 | C57: =SUM(C40:C56) -> 2 | D57: =SUM(D40:D56) -> 2
A58: I alt | B58: 844 | C58: =C57+C39+'Asyl - visitering(1)'!C60+'Asyl - visitering(1)'!C37+'Asyl - visitering(1)'!C17 -> 56 | D58: =D57+D39+'Asyl - visitering(1)'!D17+'Asyl - visitering(1)'!D37+'Asyl - visitering(1)'!D60 -> 56
A60: * Tabellen viser antallet af beslutninger truffet i Udlændingestyrelsen om visitering af flygtninge til en kommune/region. Fra beslutningen om visitering er truffet, går der i gennemsnit 1½ måned før flygtningen ankommer til den pågældende kommune.

Sheet Somalia
A5: (A) Tabel 8: Afgørelser i sager om forlængelse og inddragelse af opholdstilladelse for somaliere
A8: Periode | B8: I alt 2018 | C8: 2019 | O8: 2019
A9: Kategori | C9: jan | D9: feb | E9: mar | F9: apr | G9: maj | H9: jun | I9: jul | J9: aug | K9: sep | L9: okt | M9: nov | N9: dec | O9: ="i alt pr."&" "&Forside!Q1&"" -> i alt pr. 31.01.2019
A10: Antal afgørelser i sager om forlængelse og inddragelse af opholdstilladelse for somaliere | B10: 396 | C10: 1 | O10: =SUM(C10:N10) -> 1
A11: - heraf asyl | B11: 222 | C11: 0 | O11: =SUM(C11:N11) -> 0
A12: - heraf inddragelse | B12: 103 | C12: 0 | O12: =SUM(C12:N12) -> 0
A13: - heraf undladelse af inddragelse | B13: 48 | C13: 0 | O13: 0
A14: - heraf forlængelse | B14: 32 | C14: 1 | O14: 1
A15: - heraf afslag på forlængelse | B15: 39 | C15: 0 | O15: =SUM(C15:N15) -> 0
A16: - heraf familiesammenføring mv. | B16: 174 | C16: 0 | O16: =SUM(C16:N16) -> 0
A17: - heraf inddragelse | B17: 59 | C17: 0 | O17: =SUM(C17:N17) -> 0
A18: - heraf undladelse af inddragelse | B18: 24 | C18: 0 | O18: =SUM(C18:N18) -> 0
A19: - heraf forlængelse | B19: 7 | C19: 0 | O19: =SUM(C19:N19) -> 0
A20: - heraf afslag på forlængelse | B20: 84 | C20: 0 | O20: =SUM(C20:N20) -> 0

Sheet Familiesammenføring intro (1)
A5: Familiesammenføringsområdet mv. (B)

Sheet Fam - nøgletal (2)
A5: (B) Tabel 1: Aktuelle hovedtal på familiesammenføringsområdet mv.
A8: Periode | B8: I alt 2018 | C8: 2019 | O8: I alt
A9: Kategori | C9: jan | D9: feb | E9: mar | F9: apr | G9: maj | H9: jun | I9: jul | J9: aug | K9: sep | L9: okt | M9: nov | N9: dec | O9: ="pr."&" "&Forside!Q1&"" -> pr. 31.01.2019
A10: Familiesammenføring
A11: Antal personer, som har søgt om familiesammenføring * | B11: 5939 | C11: 215 | O11: =SUM(C11:N11) -> 215
A12: Antal familiesammenføringstilladelser | B12: 4602 | C12: 309 | O12: =SUM(C12:N12) -> 309
A13: - heraf ægtefæller og faste samlevere | B13: 3225 | C13: 245 | O13: =SUM(C13:N13) -> 245
A14: Antal afslag på ansøgning om familiesammenføring | B14: 2254 | C14: 84 | O14: =SUM(C14:N14) -> 84
A16: Øvrige opholdssager
A17: Antal tilladelser på det øvrige opholdsområde | B17: 631 | C17: 25 | O17: =SUM(C17:N17) -> 25
A19: (B) Tabel 2: Historiske hovedtal på familiesammenføringsområdet mv.
A22: Periode | B22: Året 2014 | C22: Året 2015 | F22: Året 2016 | I22: Året 2017 | L22: Året 2018 | O22: ="Året 2019 pr."&" "&Forside!Q1&"" -> Året 2019 pr. 31.01.2019
A23: Kategori | F23: 2010 | I23: 2010 | L23: 2010
A24: Familiesammenføring
A25: Antal personer, som har søgt om familiesammenføring * | B25: 12307 | C25: 16017 | F25: 8789 | I25: 6689 | L25: 5939 | O25: =O11 -> 215
A26: Antal familiesammenføringstilladelser | B26: 5727 | C26: 11645 | F26: 7679 | I26: 7015 | L26: 4602 | O26: =O12 -> 309
A27: - heraf ægtefæller og faste samlevere | B27: 3410 | C27: 5233 | F27: 3825 | I27: 4127 | L27: 3225 | O27: =O13 -> 245
A28: Antal afslag på ansøgning om familiesammenføring | B28: 1366 | C28: 1957 | F28: 2461 | I28: 2637 | L28: 2254 | O28: =O14 -> 84
A30: Øvrige opholdssager
A31: Antal tilladelser på det øvrige opholdsområde | B31: 516 | C31: 493 | F31: 470 | I31: 775 | L31: 631 | O31: =O17 -> 25
A33: * Der tages forbehold for, at der løbende kan forekomme efterkorrektioner til disse tal.

Sheet Fam - ansøgninger (3)
A5: (B) Tabel 3: Antallet af ansøgninger om familiesammenføring fordelt på nationalitet
A8: Periode | B8: 2019 ** | N8: I alt | O8: I alt
A9: Nationalitet | B9: jan | C9: feb | D9: mar | E9: apr | F9: maj | G9: jun | H9: jul | I9: aug | J9: sep | K9: okt | L9: nov | M9: dec | N9: ="pr."&" "&Forside!Q1&"" -> pr. 31.01.2019 | O9: 2018
A10: Syrien | B10: 7 | N10: =SUM(B10:M10) -> 7 | O10: 533
A11: Thailand | B11: 14 | N11: =SUM(B11:M11) -> 14 | O11: 447
A12: Tyrkiet | B12: 9 | N12: =SUM(B12:M12) -> 9 | O12: 354
A13: Filippinerne | B13: 26 | N13: =SUM(B13:M13) -> 26 | O13: 399
A14: Eritrea | B14: 10 | N14: 10 | O14: 489
A15: Afghanistan | B15: 8 | N15: =SUM(B15:M15) -> 8 | O15: 264
A16: USA | B16: 7 | N16: =SUM(B16:M16) -> 7 | O16: 224
A17: Pakistan | B17: 5 | N17: =SUM(B17:M17) -> 5 | O17: 250
A18: Iran | B18: 10 | N18: =SUM(B18:M18) -> 10 | O18: 172
A19: Vietnam | B19: 2 | N19: 2 | O19: 100
A20: Kina | B20: 5 | N20: 5 | O20: 157
A21: Statsløse * | B21: 8 | N21: =SUM(B21:M21) -> 8 | O21: 142
A22: Irak | B22: 7 | N22: =SUM(B22:M22) -> 7 | O22: 157
A23: Ukraine | B23: 16 | N23: =SUM(B23:M23) -> 16 | O23: 149
A24: Marokko | B24: 7 | N24: =SUM(B24:M24) -> 7 | O24: 128
A25: Somalia | B25: 2 | N25: 2 | O25: 81
A26: Brasilien | B26: 2 | N26: 2 | O26: 132
A27: Indien | B27: 3 | N27: 3 | O27: 117
A28: Øvrige | B28: 67 | N28: =SUM(B28:M28) -> 67 | O28: 1644
A29: I alt | B29: =SUM(B10:B28) -> 215 | N29: =SUM(B29:M29) -> 215 | O29: =SUM(O10:O28) -> 5939
A31: (B) Tabel 4: Historisk udvikling i antallet af ansøgninger om familiesammenføring
A34: Måned | B34: jan | C34: feb | D34: mar | E34: apr | F34: maj | G34: jun | H34: jul | I34: aug | J34: sep | K34: okt | L34: nov | M34: dec | N34: I alt
A35: År
A36: 2014 | B36: 804 | C36: 768 | D36: 727 | E36: 707 | F36: 788 | G36: 951 | H36: 965 | I36: 1015 | J36: 1231 | K36: 1359 | L36: 1471 | M36: 1521 | N36: 12307
A37: 2015 | B37: 1668 | C37: 1179 | D37: 1846 | E37: 1632 | F37: 1553 | G37: 1480 | H37: 1358 | I37: 1204 | J37: 1038 | K37: 897 | L37: 1012 | M37: 1150 | N37: 16017
A38: 2016 | B38: 995 | C38: 1120 | D38: 796 | E38: 671 | F38: 747 | G38: 613 | H38: 572 | I38: 696 | J38: 731 | K38: 584 | L38: 658 | M38: 606 | N38: 8789
A39: 2017 | B39: 571 | C39: 576 | D39: 671 | E39: 458 | F39: 554 | G39: 604 | H39: 501 | I39: 624 | J39: 539 | K39: 625 | L39: 521 | M39: 445 | N39: 6689
A40: 2018 | B40: 610 | C40: 589 | D40: 549 | E40: 460 | F40: 537 | G40: 916 | H40: 374 | I40: 421 | J40: 454 | K40: 526 | L40: 385 | M40: 118 | O40: =SUM(B40:M40) -> 5939
A41: 2019 ** | B41: =B29 -> 215 | N41: =SUM(B41:M41) -> 215
A42: * Inklusiv statsløse palæstinensere.
A43: ** Der tages forbehold for, at der løbende kan forekomme efterkorrektioner til disse tal.

Sheet Fam - (4)
A3: (B) Tabel 5: Antal afgørelser vedr. familiesammenføring fordelt på herboende reference *
A6: Periode | B6: Året 2018 | E6: ="Året 2019 pr."&" "&Forside!Q1&"" -> Året 2019 pr. 31.01.2019
A7: Alle afgørelser | B7: Tilladelser | C7: Afslag | D7: I alt | E7: Tilladelser | F7: Afslag | G7: I alt
A8: Ægtefæller og faste samlevere | B8: 3225 | C8: 1572 | D8: =SUM(B8:C8) -> 4797 | E8: 245 | F8: 63 | G8: =SUM(E8:F8) -> 308
A9: - heraf til herboende flygtning | B9: 493 | C9: 786 | D9: =SUM(B9:C9) -> 1279 | E9: 29 | F9: 14 | G9: 43
A10: - heraf til herboende indvandrer | B10: 268 | C10: 218 | D10: =SUM(B10:C10) -> 486 | E10: 44 | F10: 17 | G10: 61
A11: - heraf til herboende dansk eller nordisk statsborger | B11: 2464 | C11: 568 | D11: =SUM(B11:C11) -> 3032 | E11: 172 | F11: 32 | G11: 204
A12: Mindreårige børn * | B12: 1374 | C12: 678 | D12: =SUM(D13:D14) -> 2052 | E12: =E13+E14 -> 64 | F12: =F13+F14 -> 21 | G12: 85
A13: - heraf til herboende flygtning | B13: 643 | C13: 501 | D13: =B13+C13 -> 1144 | E13: 23 | F13: 7 | G13: 30
A14: - heraf til andre | B14: 731 | C14: 177 | D14: =B14+C14 -> 908 | E14: 41 | F14: 14 | G14: 55
A15: I alt | B15: 4599 | C15: 2250 | D15: =D8+D12 -> 6849 | E15: 309 | F15: 84 | G15: =+G8+G12 -> 393
A17: (B) Tabel 6: Antal afgørelser vedr. ægtefællesammenføring, faste samlevere fordelt på nationalitet *
A20: Periode | B20: Året 2018 | E20: ="Året 2019 pr."&" "&Forside!Q1&"" -> Året 2019 pr. 31.01.2019
A21: Nationalitet | B21: Tilladelser | C21: Afslag | D21: I alt | E21: Tilladelser | F21: Afslag | G21: I alt
A22: Eritrea | B22: 101 | C22: 325 | D22: 426 | E22: 1 | F22: 3 | G22: =SUM(E22:F22) -> 4
A23: Syrien | B23: 114 | C23: 203 | D23: 317 | E23: 6 | F23: 5 | G23: =SUM(E23:F23) -> 11
A24: Thailand | B24: 326 | C24: 63 | D24: 389 | E24: 21 | F24: 3 | G24: =SUM(E24:F24) -> 24
A25: Filippinerne | B25: 312 | C25: 49 | D25: 361 | E25: 14 | F25: 5 | G25: =SUM(E25:F25) -> 19
A26: Tyrkiet | B26: 175 | C26: 109 | D26: 284 | E26: 11 | F26: 8 | G26: 19
A27: USA | B27: 150 | C27: 23 | D27: 173 | E27: 14 | F27: 0 | G27: 14
A28: Afghanistan | B28: 97 | C28: 93 | D28: 190 | E28: 11 | F28: 3 | G28: 14
A29: Kina | B29: 109 | C29: 25 | D29: 134 | E29: 9 | F29: 0 | G29: 9
A30: Statsløse ** | B30: 67 | C30: 52 | D30: 119 | E30: 6 | F30: 1 | G30: 7
A31: Vietnam | B31: 91 | C31: 27 | D31: 118 | E31: 11 | F31: 1 | G31: 12
A32: Iran | B32: 90 | C32: 38 | D32: 128 | E32: 6 | F32: 3 | G32: 9
A33: Pakistan | B33: 90 | C33: 49 | D33: 139 | E33: 15 | F33: 0 | G33: 15
A34: Ukraine | B34: 103 | C34: 16 | D34: 119 | E34: 7 | F34: 0 | G34: 7
A35: Brasilien | B35: 95 | C35: 10 | D35: 105 | E35: 7 | F35: 0 | G35: 7
A36: Somalia | B36: 24 | C36: 54 | D36: 78 | E36: 1 | F36: 1 | G36: 2
A37: Øvrige | B37: 1281 | C37: 436 | D37: 1717 | E37: 105 | F37: 30 | G37: 135
A38: I alt | B38: =SUM(B22:B37) -> 3225 | C38: =SUM(C22:C37) -> 1572 | D38: =SUM(B38:C38) -> 4797 | E38: =SUM(E22:E37) -> 245 | F38: =SUM(F22:F37) -> 63 | G38: =SUM(G22:G37) -> 308
A39: * Inklusiv afgørelser efter EU-reglerne
A40: ** Inklusiv statsløse palæstinensere.

Sheet Fam - EU (5)
A5: (B) Tabel 7: Ansøgninger om familiesammenføring efter EU-reglerne, hvor den herboende reference er dansk statsborger fordelt på nationalitet
A8: Periode | F8: 2018 | J8: 2019 | N8: 2019
A9: Nationalitet | J9: ="I alt pr."&" "&Forside!Q1&"" -> I alt pr. 31.01.2019 | N9: ="Andel pr."&" "&Forside!Q1&"" -> Andel pr. 31.01.2019
A10: Tyrkiet | F10: 45 | J10: 1 | N10: =J10/J17 -> 0.03333333333
A11: Filippinerne | F11: 19 | J11: 5 | N11: =J11/$J$17 -> 0.1666666667
A12: Pakistan | F12: 24 | J12: 1 | N12: =J12/$J$17 -> 0.03333333333
A13: Brasilien | F13: 14 | J13: 0 | N13: =J13/J17 -> 0
A14: Thailand | F14: 17 | J14: 5 | N14: =J14/J17 -> 0.1666666667
A15: USA | F15: 22 | J15: 0 | N15: =J15/J17 -> 0
A16: Øvrige | F16: 208 | J16: 18 | N16: 0.6
A17: I alt | F17: =SUM(F10+F11+F12+F13+F14+F15+F16) -> 349 | J17: =SUM(J10+J11+J12+J13+J14+J15+J16) -> 30 | N17: 1
A24: (B) Tabel 8: Afgørelser om familiesammenføring efter EU-reglerne, hvor den herboende reference er dansk statsborger
A27: Periode | B27: I alt 2018 | C27: 2019 | O27: ="I alt pr."&" "&Forside!Q1&"" -> I alt pr. 31.01.2019
A28: Afgørelse | C28: jan | D28: feb | E28: mar | F28: apr | G28: maj | H28: jun | I28: jul | J28: aug | K28: sep | L28: okt | M28: nov | N28: dec
A29: Tilladelser | B29: 289 | C29: 17 | O29: =SUM(C29:N29) -> 17
A30: Afslag | B30: 101 | C30: 11 | O30: =SUM(C30:N30) -> 11
A31: I alt | B31: 390 | C31: =SUM(C29:C30) -> 28 | O31: =SUM(O29:O30) -> 28

Sheet TUB - intro
A5: Permanente (tidsubegrænsede) opholdstilladelser (C)

Sheet TUB - hovedtal
A5: (C) Tabel 1: Permanente opholdstilladelser opdelt på kategorier
A8: Periode | D8: 2018 I alt | E8: 2019 | Q8: 2019
A9: Kategori | E9: jan | F9: feb | G9: mar | H9: apr | I9: maj | J9: jun | K9: jul | L9: aug | M9: sep | N9: okt | O9: nov | P9: dec | Q9: ="i alt pr."&" "&Forside!Q1&"" -> i alt pr. 31.01.2019
A10: Asyl | D10: 225 | E10: 7 | Q10: =SUM(E10:P10) -> 7
A11: Familiesammenføring mv. | D11: 1900 | E11: 144 | Q11: =SUM(E11:P11) -> 144
A12: Erhverv/Studie mv. | D12: 651 | E12: 91 | Q12: =SUM(E12:P12) -> 91
A13: I alt | D13: =SUM(D10:D12) -> 2776 | E13: 242 | Q13: =SUM(Q10:Q12) -> 242
A15: (C) Tabel 2: Permanente opholdstilladelser, asyl fordelt på nationaliteter
A18: Periode | D18: 2018 I alt | E18: 2019 | Q18: 2019
A19: Kategori | E19: jan | F19: feb | G19: mar | H19: apr | I19: maj | J19: jun | K19: jul | L19: aug | M19: sep | N19: okt | O19: nov | P19: dec | Q19: ="i alt pr."&" "&Forside!Q1&"" -> i alt pr. 31.01.2019
A20: Irak | D20: 25 | E20: 0 | Q20: =SUM(E20:P20) -> 0
A21: Afghanistan | D21: 45 | E21: 0 | Q21: =SUM(E21:P21) -> 0
A22: Iran | D22: 23 | E22: 1 | Q22: 1
A23: Den Demokratiske Republik Congo | D23: 14 | E23: 0 | Q23: 0
A24: Statsløse * | D24: 13 | E24: 0 | Q24: 0
A25: Øvrige | D25: 105 | E25: 6 | Q25: 6
A26: I alt | D26: 225 | E26: =SUM(E20:E25) -> 7 | Q26: =SUM(E26:P26) -> 7
A28: (C) Tabel 3: Permanente opholdstilladelser, familiesammenføring mv. fordelt på nationaliteter
A31: Periode | D31: 2018 I alt | E31: 2019 | Q31: 2019
A32: Kategori | E32: jan | F32: feb | G32: mar | H32: apr | I32: maj | J32: jun | K32: jul | L32: aug | M32: sep | N32: okt | O32: nov | P32: dec | Q32: ="i alt pr."&" "&Forside!Q1&"" -> i alt pr. 31.01.2019
A33: Tyrkiet | D33: 394 | E33: 24 | Q33: =SUM(E33:P33) -> 24
A34: Thailand | D34: 125 | E34: 11 | Q34: 11
A35: Irak | D35: 124 | E35: 7 | Q35: 7
A36: Tyskland | D36: 106 | E36: 4 | Q36: 4
A37: Filippinerne | D37: 91 | E37: 5 | Q37: 5
A38: Øvrige | D38: 1060 | E38: 93 | Q38: =SUM(E38:P38) -> 93
A39: I alt | D39: =SUM(D33:D38) -> 1900 | E39: 144 | Q39: 144
A40: * Inklusiv statsløse palæstinensere.

Sheet TUB - hovedtal (2)
A5: (C) Tabel 4: Permanente opholdstilladelser, erhverv/studie mv. fordelt på nationaliteter
A8: Periode | D8: 2018 I alt | E8: 2019 | Q8: 2019
A9: Kategori | E9: jan | F9: feb | G9: mar | H9: apr | I9: maj | J9: jun | K9: jul | L9: aug | M9: sep | N9: okt | O9: nov | P9: dec | Q9: ="i alt pr."&" "&Forside!Q1&"" -> i alt pr. 31.01.2019
A10: Ukraine | D10: 128 | E10: 22 | Q10: =SUM(E10:P10) -> 22
A11: Indien | D11: 92 | E11: 14 | Q11: 14
A12: Pakistan | D12: 66 | E12: 6 | Q12: 6
A13: Kina | D13: 62 | E13: 5 | Q13: 5
A14: Bangladesh | D14: 28 | E14: 6 | Q14: 6
A15: Øvrige | D15: 275 | E15: 38 | Q15: 38
A16: I alt | D16: =SUM(D10:D15) -> 651 | E16: =SUM(E10:E15) -> 91 | F16: =SUM(F10:F15) -> 0 | G16: 0 | H16: 0 | I16: 0 | J16: 0 | K16: 0 | L16: =SUM(L10:L15) -> 0 | M16: =SUM(M10:M15) -> 0 | N16: =SUM(N10:N15) -> 0 | O16: =SUM(O10:O15) -> 0 | P16: =SUM(P10:P15) -> 0 | Q16: 91

Sheet Visum - intro
A5: Visum (D)

Sheet Visum - hovedtal
A3: (D) Tabel 1: Udstedte visa i Udlændingestyrelsen og i Udenrigsministeriet (repræsentationerne)
A6: Rejseformål | B6: udvalgte rejseformål | L6: ="I alt pr."&" "&Forside!Q1&"" -> I alt pr. 31.01.2019
A7: Myndighed/Nationalitet | B7: - heraf forretningsvisa | C7: - heraf besøgsvisa | F7: - heraf turistvisa | I7: - heraf visa til kultur/sport
A8: Udlændingestyrelsen
A9: Thailand | B9: 0 | C9: 29 | F9: 5 | I9: 0 | L9: 39
A10: Filippinerne | B10: 0 | C10: 6 | F10: 2 | I10: 0 | L10: 14
A11: Ukraine | B11: 0 | C11: 0 | F11: 0 | I11: 0 | L11: 0
A12: Tyrkiet | B12: 0 | C12: 6 | F12: 1 | I12: 0 | L12: 7
A13: Øvrige | B13: 13 | C13: 56 | F13: 6 | I13: 1 | L13: 89
A14: ="I alt pr."&" "&Forside!Q1&"" -> I alt pr. 31.01.2019 | B14: =SUM(B9:B13) -> 13 | C14: =C9+C10+C11+C12+C13 -> 97 | F14: =F9+F10+F11+F12+F13 -> 14 | I14: =I9+I10+I11+I12+I13 -> 1 | L14: =L9+L10+L11+L12+L13 -> 149
A16: Udenrigsministeriet (repræsentationerne)
A17: Kina | B17: 664 | C17: 174 | F17: 3694 | I17: 159 | L17: 4700
A18: Indien | B18: 806 | C18: 156 | F18: 916 | I18: 15 | L18: 1905
A19: Thailand | B19: 41 | C19: 126 | F19: 959 | I19: 0 | L19: 1149
A20: Rusland | B20: 117 | C20: 82 | F20: 89 | I20: 56 | L20: 348
A21: Øvrige | B21: 694 | C21: 732 | F21: 892 | I21: 77 | L21: 2559
A22: =A14 -> I alt pr. 31.01.2019 | B22: =B17+B18+B19+B20+B21 -> 2322 | C22: =SUM(C17+C18+C19+C20+C21) -> 1270 | F22: =SUM(F17:H21) -> 6550 | I22: =SUM(I17:K21) -> 307 | L22: =SUM(L17+L18+L19+L20+L21) -> 10661
A24: (D) Tabel 2: Historiske hovedtal på visumområdet
A27: Periode | B27: Året 2015 | C27: Året 2016 | F27: Året 2017 | I27: Året 2018 | L27: ="Året 2019 pr."&" "&Forside!Q1&"" -> Året 2019 pr. 31.01.2019
A28: Kategori
A29: Udlændingestyrelsen
A30: Tilladelser | B30: 2156 | C30: 1771 | F30: 1830 | I30: 2111 | L30: 149
A31: Afslag | B31: 3184 | C31: 1881 | F31: 1845 | I31: 2262 | L31: 161
A33: Udenrigsministeriet (repræsentationerne)
A34: Tilladelser | B34: 114112 | C34: 132574 | F34: 139663 | I34: 147861 | L34: 10661
A35: Afslag | B35: 3371 | C35: 6440 | F35: 7764 | I35: 9211 | L35: 903

Sheet Erhverv - intro
A5: Erhvervsområdet (E)

Sheet Erhverv - år
A5: (E) Tabel 1: Opholdstilladelser på erhvervsområdet - fordelt på år
A8: Kategori | F8: Periode | G8: 2016 | J8: 2017 | M8: 2018 | P8: ="2019 pr."&" "&Forside!Q1&"" -> 2019 pr. 31.01.2019
A9: Beløbsordningen | G9: 3118 | J9: 2586 | M9: 2570 | P9: 180
A10: Fast-trackordningen | G10: 1735 | J10: 2249 | M10: 2783 | P10: 238
A11: Koncernordningen, Positivlisten og Jobskifte v. uforskyldt ledighed | G11: 145 | J11: 243 | M11: 412 | P11: 28
A12: Forskere og undervisere | G12: 572 | J12: 558 | M12: 529 | P12: 40
A13: Landbrug | G13: 860 | J13: 861 | M13: 899 | P13: 90
A14: Start-Up Denmark og Selvstændige | G14: 33 | J14: 22 | M14: 44 | P14: 8
A15: Greencard (pointbaseret) | G15: 811 | J15: 145 | M15: 6 | P15: 0
A16: Etableringskort | G16: 334 | J16: 422 | M16: 406 | P16: 44
A17: Øvrige kategorier * | G17: 519 | J17: 445 | M17: 575 | P17: 28
A18: Familiemæssig tilknytning til person med opholdstilladelse på erhvervsområdet | G18: 4345 | J18: 4640 | M18: 5190 | P18: 396
A19: Lønarbejde på Grønland/Færøerne og medfølgende familie samt Associering-stand still | G19: 419 | J19: 575 | M19: 935 | P19: 73
A21: Associeringsaftalen og familiemedlemmer til personer med ophold efter Associeringsaftalen | G21: 12 | J21: 3 | M21: 4 | P21: 0
A22: I alt | G22: =SUM(G9:I21) -> 12903 | J22: =SUM(J9:L21) -> 12749 | M22: =SUM(M9:O21) -> 14353 | P22: =SUM(P9:Q21) -> 1125
A24: * Kategorien Øvrige omfatter tilladelser til trainees, personer med særlige individuelle kvalifikationer, kokke, cirkusspecialister, personer arbejdende på en boreplatform eller lignende, idrætsudøvere og trænere, musikere og artister, øvrigt lønarbejde, arbejdsmarkedstilknytning og specialister samt familiemæssig tilknytning til udlandsdanskere, som falder udenfor ovenstående kategorier.

Sheet Erhverv - måneder
A5: (E) Tabel 2: Opholdstilladelser på erhvervsområdet - fordelt på måneder
A8: Periode | D8: 2018 I alt | E8: 2019 | Q8: ="2019 i alt pr."&" "&Forside!Q1&"" -> 2019 i alt pr. 31.01.2019
A9: Kategori | E9: jan | F9: feb | G9: mar | H9: apr | I9: maj | J9: jun | K9: jul | L9: aug | M9: sep | N9: okt | O9: nov | P9: dec
A10: Beløbsordningen | D10: 2570 | E10: 180 | Q10: =SUM(E10:P10) -> 180
A11: Fast-trackordningen | D11: 2783 | E11: 238 | Q11: 238
A12: Positivlisten og Jobskifte v. uforskyldt ledighed | D12: 412 | E12: 28 | Q12: 28
A13: Forskere og undervisere | D13: 529 | E13: 40 | Q13: 40
A14: Landbrug | D14: 899 | E14: 90 | Q14: 90
A15: Start-Up Denmark og Selvstændige | D15: 44 | E15: 8 | Q15: 8
A16: Greencard (pointbaseret) | D16: 6 | E16: 0 | Q16: 0
A17: Etableringskort | D17: 406 | E17: 44 | Q17: 44
A18: Øvrige kategorier * | D18: 575 | E18: 28 | Q18: 28
A19: Familiemæssig tilknytning til person med opholdstilladelse på erhvervsområdet | D19: 5190 | E19: 396 | Q19: 396
A20: Lønarbejde på Grønland/Færøerne og medfølgende familie samt Associering-stand still | D20: 935 | E20: 73 | Q20: 73
A22: Associeringsaftalen og familiemedlemmer til personer med ophold efter Associeringsaftalen | D22: 4 | E22: 0 | Q22: 0
A23: I alt | D23: =SUM(D10:D22) -> 14353 | E23: 1125 | Q23: =SUM(Q10:Q22) -> 1125
A25: Note: For note vedr. Øvrige kategorier henvises til Tabel 1.

Sheet Erhverv - Nationaliteter1
A5: (E) Tabel 3: Opholdstilladelser på erhvervsområdet - fordelt på nationaliteter
A8: Periode | D8: 2018 I alt | E8: Udvalgte nationaliteter 2019 | I8: ="2019 i alt pr."&" "&Forside!Q1&"" -> 2019 i alt pr. 31.01.2019
A9: Kategori | E9: Indien | F9: Ukraine | G9: Kina | H9: USA
A10: Beløbsordningen | D10: 2570 | E10: 62 | F10: 4 | G10: 26 | H10: 23 | I10: 180
A11: Fast-trackordningen | D11: 2783 | E11: 136 | F11: 3 | G11: 12 | H11: 9 | I11: 238
A12: Positivlisten og Jobskifte v. uforskyldt ledighed | D12: 412 | E12: 8 | F12: 0 | G12: 2 | H12: 5 | I12: 28
A13: Forskere og undervisere | D13: 529 | E13: 4 | F13: 1 | G13: 10 | H13: 4 | I13: 40
A14: Landbrug | D14: 899 | E14: 0 | F14: 87 | G14: 0 | H14: 0 | I14: 90
A15: Start-Up Denmark og Selvstændige | D15: 44 | E15: 3 | F15: 0 | G15: 0 | H15: 1 | I15: 8
A16: Greencard (pointbaseret) | D16: 6 | E16: 0 | F16: 0 | G16: 0 | H16: 0 | I16: 0
A17: Etableringskort | D17: 406 | E17: 8 | F17: 0 | G17: 5 | H17: 4 | I17: 44
A18: Øvrige kategorier * | D18: 575 | E18: 1 | F18: 0 | G18: 0 | H18: 8 | I18: 28
A19: Familiemæssig tilknytning til person med opholdstilladelse på erhvervsområdet | D19: 5190 | E19: 174 | F19: 66 | G19: 25 | H19: 4 | I19: 396
A20: Lønarbejde på Grønland/Færøerne og medfølgende familie samt Associering-stand still | D20: 935 | E20: 3 | F20: 0 | G20: 0 | H20: 2 | I20: 73
A22: Associeringsaftalen og familiemedlemmer til personer med ophold efter Associeringsaftalen | D22: 4 | E22: 0 | F22: 0 | G22: 0 | H22: 0 | I22: 0
A23: I alt | D23: =SUM(D10:D22) -> 14353 | E23: =SUM(E10:E22) -> 399 | F23: 161 | G23: 80 | H23: =SUM(H10:H22) -> 60 | I23: =SUM(I10:I22) -> 1125
A25: Note: For note vedr. Øvrige kategorier henvises til Tabel 1.

Sheet Erhverv - nationaliteter2
A5: (E) Tabel 4: Opholdstilladelser efter Fast-trackordningen, Beløbsordningen, Positivlisten og forskere og undervisere fordelt på måneder og nationaliteter
D8: 2018 I alt | E8: 2019 | Q8: ="2019 i alt pr."&" "&Forside!Q1&"" -> 2019 i alt pr. 31.01.2019
A9: Nationalitet | E9: jan | F9: feb | G9: mar | H9: apr | I9: maj | J9: jun | K9: jul | L9: aug | M9: sep | N9: okt | O9: nov | P9: dec
A10: Indien | D10: 2449 | E10: 210 | Q10: =SUM(E10:P10) -> 210
A11: Kina | D11: 723 | E11: 49 | Q11: =SUM(E11:P11) -> 49
A12: USA | D12: 612 | E12: 40 | Q12: 40
A13: Canada | D13: 132 | E13: 9 | Q13: 9
A14: Iran | D14: 181 | E14: 14 | Q14: 14
A15: Øvrige | D15: 2112 | E15: 158 | Q15: 158
A16: I alt | D16: =SUM(D10:D15) -> 6209 | E16: 480 | Q16: =SUM(E16:P16) -> 480
I17: 131
A23: (E) Tabel 5: Opholdstilladelser efter Greencard-ordningen og Etableringskort fordelt på nationaliteter
A26: Periode | D26: 2018 I alt | E26: 2019 | Q26: ="2019 i alt pr."&" "&Forside!Q1&"" -> 2019 i alt pr. 31.01.2019
A27: Nationalitet | E27: jan | F27: feb | G27: mar | H27: apr | I27: maj | J27: jun | K27: jul | L27: aug | M27: sep | N27: okt | O27: nov | P27: dec
A28: Kina | D28: 96 | E28: 5 | Q28: =SUM(E28:P28) -> 5
A29: Indien | D29: 48 | E29: 8 | Q29: 8
A30: Iran | D30: 31 | E30: 6 | Q30: 6
A31: USA | D31: 34 | E31: 4 | Q31: 4
A32: Nepal | D32: 19 | E32: 2 | Q32: 2
A33: Øvrige | D33: 184 | E33: 19 | Q33: 19
A34: I alt | D34: =SUM(D28:D33) -> 412 | E34: =SUM(E28:E33) -> 44 | Q34: =SUM(E34:P34) -> 44

Sheet Studie - intro
A5: Studieområdet mv. (F)

Sheet Studie - hovedtal
A5: (F) Tabel 1: Opholdstilladelser på studieområdet mv.
A8: Kategori | F8: Periode | G8: 2016 | J8: 2017 | M8: 2018 | P8: ="2019 i alt pr."&" "&Forside!Q1&"" -> 2019 i alt pr. 31.01.2019
A9: Uddannelse, inkl. PhD | G9: 9194 | H9: 2244 | I9: 2244 | J9: 8949 | M9: 8857 | P9: 353
A10: Au pair | G10: 1349 | J10: 1423 | M10: 1310 | P10: 72
A11: Praktikanter | G11: 1272 | J11: 1899 | M11: 2250 | P11: 192
A12: Volontør og Working Holiday mv. | G12: 1422 | J12: 1874 | M12: 2213 | P12: 188
A13: Religiøse forkyndere mv. | G13: 75 | J13: 90 | M13: 109 | P13: 5
A14: Øvrige | G14: 979 | J14: 1067 | M14: 1080 | P14: 84
A15: I alt | G15: =G9+G10+G11+G12+G13+G14 -> 14291 | J15: =J9+J10+J11+J12+J13+J14 -> 15302 | M15: =SUM(M9:O14) -> 15819 | P15: =SUM(P9:R14) -> 894
A20: (F) Tabel 2: Opholdstilladelser med henblik på uddannelse
A23: Periode | D23: 2018 I alt | E23: 2019 | Q23: ="2019 i alt pr."&" "&Forside!Q1&"" -> 2019 i alt pr. 31.01.2019
A24: Kategori | E24: jan | F24: feb | G24: mar | H24: apr | I24: maj | J24: jun | K24: jul | L24: aug | M24: sep | N24: okt | O24: nov | P24: dec
A25: PhD-uddannelse | D25: 879 | E25: 46 | Q25: =SUM(E25:P25) -> 46
A26: Videregående uddannelse, Danske Universiteter * | D26: 5990 | E26: 180 | Q26: 180
A27: Videregående uddannelse, øvrige institutioner | D27: 1047 | E27: 87 | Q27: 87
A28: Kursus på folkehøjskole | D28: 533 | E28: 19 | Q28: 19
A29: Grund- og ungdomsuddannelse | D29: 408 | E29: 21 | Q29: 21
A30: I alt | D30: =SUM(D25:D29) -> 8857 | E30: 353 | Q30: =SUM(E30:P30) -> 353

Sheet Studie - nationaliteter
A5: (F) Tabel 3: Opholdstilladelser med henblik på uddannelse, inkl. personer på en PhD-uddannelse, fordelt på nationaliteter *
D8: 2018 I alt | E8: 2018 | Q8: ="2018 i alt pr."&" "&Forside!Q1&"" -> 2018 i alt pr. 31.01.2019
A9: Nationalitet | E9: jan | F9: feb | G9: mar | H9: apr | I9: maj | J9: jun | K9: jul | L9: aug | M9: sep | N9: okt | O9: nov | P9: dec
A10: USA | D10: 3251 | E10: 74 | Q10: =SUM(E10:P10) -> 74
A11: Kina | D11: 1315 | E11: 30 | Q11: 30
A12: Nepal | D12: 369 | E12: 39 | Q12: 39
A13: Australien | D13: 405 | E13: 17 | Q13: 17
A14: Indien | D14: 372 | E14: 32 | Q14: 32
A15: Øvrige | D15: 3145 | E15: 161 | Q15: 161
A16: I alt | D16: =SUM(D10:D15) -> 8857 | E16: =SUM(E10:E15) -> 353 | Q16: =SUM(Q10:Q15) -> 353
A18: (F) Tabel 4: Opholdstilladelser til au pair-personer fordelt på nationaliteter
D21: 2018 I alt | E21: 2019 | Q21: ="2019 i alt pr."&" "&Forside!Q1&"" -> 2019 i alt pr. 31.01.2019
A22: Nationalitet | E22: jan | F22: feb | G22: mar | H22: apr | I22: maj | J22: jun | K22: jul | L22: aug | M22: sep | N22: okt | O22: nov | P22: dec
A23: Filippinerne | D23: 1060 | E23: 60 | Q23: =SUM(E23:P23) -> 60
A24: Kenya | D24: 34 | E24: 3 | Q24: 3
A25: Nepal | D25: 22 | E25: 0 | Q25: 0
A26: Brasilien | D26: 25 | E26: 2 | Q26: 2
A27: Ukraine | D27: 29 | E27: 0 | Q27: 0
A28: Øvrige | D28: 140 | E28: 7 | Q28: 7
A29: I alt | D29: =SUM(D23:D28) -> 1310 | E29: =SUM(E23:E28) -> 72 | Q29: =SUM(E29:P29) -> 72
A31: (F) Tabel 5: Opholdstilladelser til praktikanter fordelt på nationaliteter
D34: 2018 I alt | E34: 2019 | Q34: ="2019 i alt pr."&" "&Forside!Q1&"" -> 2019 i alt pr. 31.01.2019
A35: Nationalitet | E35: jan | F35: feb | G35: mar | H35: apr | I35: maj | J35: jun | K35: jul | L35: aug | M35: sep | N35: okt | O35: nov | P35: dec
A36: Ukraine | D36: 1686 | E36: 149 | Q36: =SUM(E36:P36) -> 149
A37: USA | D37: 97 | E37: 7 | Q37: 7
A38: Kina | D38: 80 | E38: 7 | Q38: 7
A39: Indien | D39: 47 | E39: 4 | Q39: 4
A40: Brasilien | D40: 42 | E40: 3 | Q40: 3
A41: Øvrige | D41: 298 | E41: 22 | Q41: 22
A42: I alt | D42: =SUM(D36:D41) -> 2250 | E42: =SUM(E36:E41) -> 192 | Q42: 192

Sheet EU-EØS - intro
A5: EU/EØS (G)

Sheet EU-EØS -hovedtal
A2: (G) Tabel 1: EU/EØS opholdskort og registreringsbeviser opdelt på kategorier
A5: Periode | B5: 2018 I alt | C5: 2019 | O5: 2019
A6: Kategori | C6: jan | D6: feb | E6: mar | F6: apr | G6: maj | H6: jun | I6: jul | J6: aug | K6: sep | L6: okt | M6: nov | N6: dec | O6: ="i alt pr."&" "&Forside!Q1&"" -> i alt pr. 31.01.2019
A7: Lønarbejde | B7: 20220 | C7: 1540 | O7: =SUM(C7:N7) -> 1540
A8: Uddannelse | B8: 9150 | C8: 600 | O8: =SUM(C8:N8) -> 600
A9: Personer med tilstrækkelige midler | B9: 4868 | C9: 443 | O9: =SUM(C9:N9) -> 443
A10: Øvrige | B10: 4837 | C10: 384 | O10: =SUM(C10:N10) -> 384
A11: I alt | B11: =SUM(B7:B10) -> 39075 | C11: 2967 | O11: =SUM(O7:O10) -> 2967
A13: (G) Tabel 2: Udstedte EU/EØS opholdskort og registreringsbeviser med henblik på lønarbejde fordelt på nationalitet
A16: Periode | B16: 2018 I alt | C16: 2019 | O16: 2019
A17: Kategori | C17: jan | D17: feb | E17: mar | F17: apr | G17: maj | H17: jun | I17: jul | J17: aug | K17: sep | L17: okt | M17: nov | N17: dec | O17: ="i alt pr."&" "&Forside!Q1&"" -> i alt pr. 31.01.2019
A18: Rumænien | B18: 4856 | C18: 334 | O18: =SUM(C18:N18) -> 334
A19: Polen | B19: 3819 | C19: 295 | O19: 295
A20: Litauen | B20: 2284 | C20: 112 | O20: 112
A21: Bulgarien | B21: 1450 | C21: 124 | O21: 124
A22: Italien | B22: 1193 | C22: 107 | O22: 107
A23: Øvrige | B23: 6618 | C23: 568 | O23: 568
A24: I alt | B24: =SUM(B18:B23) -> 20220 | C24: 1540 | O24: =SUM(O18:O23) -> 1540
A26: (G) Tabel 3: Udstedte EU/EØS registreringsbeviser med henblik på uddannelse fordelt på nationalitet
A29: Periode | B29: 2018 I alt | C29: 2019 | O29: 2019
A30: Kategori | C30: jan | D30: feb | E30: mar | F30: apr | G30: maj | H30: jun | I30: jul | J30: aug | K30: sep | L30: okt | M30: nov | N30: dec | O30: ="i alt pr."&" "&Forside!Q1&"" -> i alt pr. 31.01.2019
A31: Tyskland | B31: 1729 | C31: 134 | O31: =SUM(C31:N31) -> 134
A32: Spanien | B32: 829 | C32: 45 | O32: 45
A33: Italien | B33: 783 | C33: 72 | O33: 72
A34: Frankrig | B34: 711 | C34: 73 | O34: 73
A35: Storbritannien | B35: 461 | C35: 34 | O35: 34
A36: Øvrige | B36: 4637 | C36: 242 | O36: 242
A37: I alt | B37: =SUM(B31:B36) -> 9150 | C37: =SUM(C31:C36) -> 600 | O37: =SUM(O31:O36) -> 600
